Cogmind - Beta 16 @@@ ROGUE MODE // 2025.12.04 @ 11:26:49 Player: most_lamentable Result: Destroyed by MW-QJW(R) with Subdweller Beam Cannon Performance ------------- Evolutions (0) 0 Regions Visited (2) 400 Robots Destroyed (15) 75 Value Destroyed (417) 417 Prototype IDs (0) 0 Alien Tech Used (0) 0 Bonus (0) 0 TOTAL SCORE: 892 Bonus ------- None Cogmind --------- Core Integrity 0/250 Matter 440/450 Energy 200/200 System Corruption 0% Temperature Cool (9) Movement Treading (160) Location -10/Subcaves Parts ------- > --- POWER (1) -------- Subdweller Power Source > --- PROPULSION (2) --- Light Treads > --- UTILITY (2) ------ Small Storage Unit Large Matter Pod > --- WEAPON (2) ------- Battle Rifle Subdweller Machine Gun > --- INVENTORY (8) ---- Subdweller Power Source Subdweller Optics Makeshift Light Armor Plating Subdweller Laser Subdweller Beam Cannon Subdweller Shrapnel Launcher Flamer Scrap Shield Fragment (45) Peak State ------------ > --- POWER ------------ Subdweller Power Source > --- PROPULSION ------- Light Treads Aluminum Leg > --- UTILITY ---------- Small Storage Unit Large Matter Pod > --- WEAPON ----------- Heavy Assault Rifle Subdweller Machine Gun > --- INVENTORY -------- Ion Engine Light Ion Engine Wheel Subdweller Optics EM Pulse Gun Subdweller Laser Scrap Shield Fragment Scrap Shield Fragment [Rating: 11] Favorites ----------- Power Subdweller Power Source Engine Subdweller Power Source Propulsion Aluminum Leg Treads Light Treads Leg Aluminum Leg Utility Small Storage Unit Storage Small Storage Unit Weapon Light Assault Rifle Energy Gun EM Pulse Gun Ballistic Gun Light Assault Rifle Build | -11 -10 -10 ------- Run | Yrd Mat Sub Slots Evolved . | . . . Power . | . . . Propulsion . | . . . Utility . | . . . Weapon . | . . . Parts Attached 18 | 6 4 8 Power 3 | 1 1 1 Engine 3 | 1 1 1 Core . | . . . Reactor . | . . . Propulsion 4 | 2 1 1 Treads 1 | . . 1 Leg 3 | 2 1 . Wheel . | . . . Hover . | . . . Flight . | . . . Utility 2 | 1 . 1 Device . | . . . Storage 2 | 1 . 1 Processor . | . . . Hackware . | . . . Protection . | . . . Artifact . | . . . Weapon 9 | 2 2 5 Energy Gun 1 | 1 . . Energy Cannon . | . . . Ballistic Gun 8 | 1 2 5 Ballistic Cannon . | . . . Launcher . | . . . Special Weapon . | . . . Impact Weapon . | . . . Slashing Weapon . | . . . Piercing Weapon . | . . . Special Melee Weapon . | . . . Unidentified Prototypes . | . . . Parts Lost 7 | . . 7 Power . | . . . Propulsion 3 | . . 3 Utility . | . . . Weapon 4 | . . 4 Highest Loss Streak 4 | . . 4 To Critical Strikes . | . . . Average Backups 6 | 4 7 6 Power 1 | . 2 1 Propulsion 1 | 2 3 1 Utility . | . . 1 Weapon 2 | 1 1 2 Tool/Special . | . . . Unused Backups 14 | . 3 11 Power 4 | . 1 3 Propulsion 3 | . 2 1 Utility 2 | . . 2 Weapon 5 | . . 5 Tool/Special . | . . . Average Slot Usage (%) 90 | . 85 94 Engine 14 | . 14 14 Treads 5 | . . 9 Leg 20 | . 28 15 Storage 21 | . 14 25 Energy Gun 1 | . 3 . Ballistic Gun 26 | . 24 27 Peak Build Rating 11 | 6 6 11 Average Rating 7 | 3 6 9 On Entrance 4 | . 6 6 Avg Prop Armor Cover (%) 7 | . . 7 Naked Turns . | . . . Heaviest Build 20 | 13 13 20 Greatest Support 20 | 20 20 20 Greatest Overweight (x) 3 | 3 . . Average Overweight (x) . | . . . Largest Inventory Capacity 8 | 8 8 8 Average Capacity 7 | 7 8 8 Most Carried 8 | 8 8 8 Average Carried 7 | 4 7 7 Final Capacity 8 | 8 8 8 Final Carried 8 | 6 8 8 Class Distribution -------------------- 100% | Mutant Dominant Class ---------------- Mutant | -10/Materials Mutant | -10/Subcaves Resources | -11 -10 -10 ----------- Run | Yrd Mat Sub Matter Collected 673 | 220 192 261 Remotely . | . . . Salvage Created 470 | . 214 256 Parts 33 | . 20 13 Haulers Intercepted . | . . . Recyclers Shooed . | . . . Parts Field Recycled . | . . . Retrieved Matter . | . . . Parts Self-Destructed 6 | . . 6 Prevented . | . . . Parts Restored . | . . . Kills | -11 -10 -10 ------- Run | Yrd Mat Sub Combat Hostiles Destroyed 15 | . 9 6 Guns 13 | . 7 6 AOE 2 | . 2 . Classes Destroyed 4 | . 2 2 Swarmer 6 | . 6 . Grunt 3 | . 3 . Sentry 1 | . . 1 Subdweller 5 | . . 5 Best Kill Streak 3 | . 3 2 Combat Bots Only 3 | . 3 2 Max Kills in Single Turn 2 | . 2 1 Gunslinging . | . . . Exploded 2 | . 2 . Melee . | . . . Uniques/NPCs Destroyed . | . . . Combat | -11 -10 -10 -------- Run | Yrd Mat Sub Hostile Shots Fired 92 | . 28 64 Missed 16 | . 6 10 Hits 76 | . 22 54 Projectile 76 | . 22 54 Critical Strikes 3 | . . 3 Damage Taken 1392 | . 249 1143 Core 269 | . 50 219 Absorbed by Shields . | . . . Core Remaining (%) 100 | 100 . . Volleys Fired 50 | . 18 32 Largest 2 | . 2 2 Hottest 63 | . 60 63 Shots Fired 97 | . 36 61 Gun 97 | . 36 61 Cannon . | . . . Launcher . | . . . Special . | . . . Kinetic 92 | . 32 60 Thermal . | . . . Explosive . | . . . Electromagnetic 5 | . 4 1 Robot Hit Streak 18 | . 7 18 Robot Miss Streak 2 | . 2 1 Penetration Max . | . . . Secondary Targets . | . . . Shots Hit Robots 72 | . 22 50 Core Hits 26 | . 12 14 Critical Kills . | . . . Critical Parts Destroyed . | . . . Critical Strikes 1 | . . 1 Destroy 1 | . . 1 Melee Attacks . | . . . Impact . | . . . Slashing . | . . . Piercing . | . . . Sneak Attacks . | . . . Combat Hostiles . | . . . Follow-up Attacks . | . . . Damage Inflicted 928 | . 281 647 Guns 838 | . 191 647 Cannons . | . . . Explosions 89 | . 89 . Melee . | . . . Ramming 1 | . 1 . Kinetic 806 | . 159 647 Thermal 89 | . 89 . Explosive . | . . . Electromagnetic 32 | . 32 . Impact . | . . . Slashing . | . . . Piercing . | . . . Highest Corruption . | . . . Average Corruption . | . . . Corruption Purged . | . . . Corruption Blocked . | . . . Overload Shots . | . . . Overflow Damage 7 | . 7 . Projectiles . | . . . Explosions 7 | . 7 . Melee . | . . . Knockbacks . | . . . Impact . | . . . Kinetic . | . . . Secondary . | . . . Self-Inflicted Damage 39 | . 39 . Shots 1 | . 1 . Rammed . | . . . Targets Rammed 2 | . 2 . Kicked 2 | . 2 . Crushed . | . . . Highest Temperature 278 | . 52 278 Average Temperature 73 | . 20 166 Received Heat Transfer 613 | . 66 547 Siege Activations . | . . . Martial Activations . | . . . Shielding Activations . | . . . Robots Disrupted . | . . . Combat Hostiles . | . . . Robots Corrupted . | . . . Combat Hostiles . | . . . Parts Fried . | . . . Impact Corruptions . | . . . Robots Melted . | . . . Combat Hostiles . | . . . Parts Melted . | . . . Heat Transferred 100 | . 100 . Parts Sabotaged . | . . . Parts Stolen . | . . . Parts Stripped . | . . . Power Chain Reactions 1 | . 1 . Alert | -11 -10 -10 ------- Run | Yrd Mat Sub Maximum Alert Level 1 | . 1 . Low Security (%) 96 | 100 95 . Level 1 3 | . 4 . Level 2 . | . . . Level 3 . | . . . Level 4 . | . . . Level 5 . | . . . High Security . | . . . Max Security . | . . . Peak Influence 200 | . 200 . Initial . | . . . Average 106 | . 132 . Influence Increases 280 | . 260 20 Destroy 0b10 Robot/C 200 | . 180 20 Destroy Leader 30 | . 30 . Disable Machine 15 | . 15 . Destroy Structure 5 | . 5 . Lose Combat Pursuer 30 | . 30 . Influence Decreases 280 | . 140 140 Entered New Map 58 | . . 58 Time Decay 202 | . 140 62 Lost Part 20 | . . 20 Squads Dispatched 2 | . 2 . Investigation 2 | . 2 . Extermination . | . . . Reinforcement . | . . . Assault . | . . . Garrison . | . . . Intercept . | . . . Searches Triggered . | . . . Construction Impeded . | . . . Haulers Reinforced . | . . . Active Scanning Responses . | . . . Cargo Convoy Interrupts . | . . . Stealth | -11 -10 -10 --------- Run | Yrd Mat Sub Distress Signals 2 | . 2 . Communications Jammed . | . . . Distress Signals . | . . . Times Spotted 25 | . 17 8 Peak Tracking Total 6 | . 6 3 Tactical Retreats 1 | . 1 . Traps | -11 -10 -10 ------- Run | Yrd Mat Sub Traps Triggered 2 | . 2 . Indirectly . | . . . Trap Hack Attempts . | . . . Triggered . | . . . Disarmed . | . . . Reprogrammed . | . . . Reused . | . . . Traps Extracted . | . . . Installed . | . . . Triggered . | . . . Machines | -11 -10 -10 ---------- Run | Yrd Mat Sub Machines Disabled 1 | . 1 . Max in Single Turn 1 | . 1 . Machines Repaired . | . . . Machines Dismantled . | . . . Machines Sabotaged . | . . . Overloaded Fab Kills . | . . . Hacking | -11 -10 -10 --------- Run | Yrd Mat Sub Machines Accessed . | . . . Terminals . | . . . Fabricators . | . . . Repair Stations . | . . . Recycling Units . | . . . Scanalyzers . | . . . Garrison Access . | . . . Total Hacks . | . . . Successful . | . . . Failed . | . . . Catastrophic . | . . . Database Lockouts . | . . . Manual . | . . . Terminals . | . . . Fabricators . | . . . Repair Stations . | . . . Recycling Units . | . . . Scanalyzers . | . . . Garrison Access . | . . . Terminal Hacks . | . . . Fabricator Hacks . | . . . Repair Station Hacks . | . . . Recycling Unit Hacks . | . . . Scanalyzer . | . . . Garrison Access Hacks . | . . . Unauthorized Hacks . | . . . Terminals . | . . . Fabricators . | . . . Repair Stations . | . . . Recycling Units . | . . . Scanalyzers . | . . . Garrison Access . | . . . Data Cores Recovered . | . . . Used . | . . . Hacking Detections . | . . . Full Trace Events . | . . . Feedback Events . | . . . Feedback Blocked . | . . . Robot Schematics Acquired . | . . . Robots Built . | . . . Authchips . | . . . Time . | . . . Total Robot Build Rating . | . . . Part Schematics Acquired . | . . . Parts Built . | . . . Authchips . | . . . Time . | . . . Total Part Build Rating . | . . . Part Studies Acquired . | . . . Parts Repaired . | . . . Time . | . . . Parts Recycled . | . . . Recycled Matter . | . . . Retrieved Matter . | . . . Retrieved Components . | . . . Parts Scanalyzed . | . . . Part Schematics Acquired . | . . . Parts Damaged . | . . . Bothacking | -11 -10 -10 ------------ Run | Yrd Mat Sub Used RIF Installer . | . . . Robots Hacked . | . . . Non-combat . | . . . Combat . | . . . Robot Hacks Applied . | . . . Relay Couplers Released . | . . . Fabnet Peak Effective % . | . . . Robots Rewired . | . . . Allies Hacked . | . . . Hacks Repelled . | . . . Allies | -11 -10 -10 -------- Run | Yrd Mat Sub Total Allies . | . . . Largest Group . | . . . Highest-Rated Group . | . . . Highest-Rated Ally . | . . . Total Orders . | . . . Ally Attacks . | . . . Total Damage . | . . . Kills . | . . . Allies Corrupted . | . . . Allies Melted . | . . . Intel | -11 -10 -10 ------- Run | Yrd Mat Sub Active Infowar (turns) . | . . . Robot Analysis Total . | . . . Derelict Logs Recovered 2 | . . 2 Drone Launches . | . . . Drone Recoveries . | . . . Exploration | -11 -10 -10 ------------- Run | Yrd Mat Sub Turns Passed 974 | 76 310 588 Spaces Moved 530 | 52 182 296 Core 14 | 14 . . Treads 214 | . . 214 Legs 302 | 38 182 82 Wheels . | . . . Hover . | . . . Flight . | . . . Fastest Speed 50 | 50 120 120 Average Speed 135 | 112 120 148 Slowest Speed 200 | 200 120 160 Overloaded Moves . | . . . Propulsion Burnouts . | . . . Robots Hopped . | . . . Potential Cave-ins . | . . . Cave-ins Triggered . | . . . Exploration Rate (%) 19 | 5 31 22 Regions Visited 2 Branch Regions 1 Pre-discovered Areas 1 | . . 1 Known Exits Taken . | . . . Unknown Exits Taken 2 | 1 1 . Scrap Searched 10 | . . 10 Spaces Dug . | . . . Terrain Destroyed 4 | . 4 . Melee . | . . . Projectile . | . . . AOE 4 | . 4 . Terrain Rammed . | . . . Walls Destroyed . | . . . Machines Disabled . | . . . Actions | -11 -10 -10 --------- Run | Yrd Mat Sub Total 705 | 69 246 390 Wait 61 | . 30 31 Move 528 | 51 181 296 Hop . | . . . Pick Up 30 | 12 5 13 Fast Attach 1 | . . 1 Attach 12 | 6 . 6 Detach . | . . . Swap 7 | . 4 3 Drop 14 | . 6 8 Fire 50 | . 18 32 Melee . | . . . Ram . | . . . Kick 2 | . 2 . Crush . | . . . Escape Stasis . | . . . Rewire . | . . . Trap . | . . . Miscellaneous . | . . . Route ------- -11/Scrapyard -10/Materials (discovered 2 exits: [*Mat] / [*Sub]) -10/Subcaves History --------- Turn | Location | Event 24 | -11/Scrapyard | Discovered new exit (range 14) 77 | -11/Scrapyard | Entered Materials 190 | -10/Materials | Discovered new exit (range 7) 322 | -10/Materials | Discovered new exit (range 16) 336 | -10/Materials | Build established: Mutant 387 | -10/Materials | Entered Subcaves 395 | -10/Subcaves | Learned location of Zion (-7) 445 | -10/Subcaves | Core integrity fell below 50% 548 | -10/Subcaves | Core integrity fell below 20% 613 | -10/Subcaves | Lost 4 parts (1n3w) 815 | -10/Subcaves | Learned 4 Materials zone layouts 856 | -10/Subcaves | Disturbed a concealed Subdweller 975 | -10/Subcaves | Destroyed by MW-QJW(R) with Subdweller Beam Cannon Last Messages --------------- 00730_ Found Sub. Laser. 00730_ Found 47 Matter. 00743_ Searching scrap... 00743_ Found Flamer. 00743_ Found 45 Matter. 00744_ Dropped Scrap Shield Fragment. 00746_ Acquired Flamer. 00815_ Acquired derelict log, extracted data. Data stored: Materials zone layouts (x4). 00856_ VM-KFN(R) angrily emerges from the Twisted Machinery. 00856_ Searching scrap... 00856_ Found Sub. Beam Cannon. 00856_ Found 41 Matter. 00859_ Acquired 5 matter. 00861_ VM-KFN(R) affixes Scrap Shield Fragment to Scrap Shield. 00862_ Aluminum Leg destroyed. 00862_ VM-KFN(R) destroyed. 00865_ Acquired 5 matter. 00870_ Dropped EM Pulse Gun. 00871_ Acquired Sub. Beam Cannon. Map ----- +----------------------------------------------------+ | ?????????????????????????????????????????????????? | | ?????????????????????????????????????????????????? | | ?????????????????????????????????????????????????? | | ?????????????????????????????????????????????????? | | ?????????????????????????????????????????????????? | | ?????????????????????????????????????????????????? | | ??????????#######????????????????????????????????? | | ??????????#"&&%"#????????????????????????????????? | | ??????????#]%##&#????????????????????????????????? | | ??????????####! #????????????????????????????????? | | ??????????###"[##????????????????????????????????? | | ??????????# ## ##????????????????????????????????? | | #?????????# " "###??########????????????????????? | | ######?#### #### ######???????????????? | | ### #???????????????? | | ### #??????????????? | | ## #?# ##??????????????? | | # ## #### #?# "##???????????????? | | ## ## ##?###?# ##????????????????? | | ## ####### #?????????????????? | | #### ## ## ###?????????????????? | | #??# #?# ######?????????????????? | | ???# ### #?## ####??????????????? | | ???###?## #### ""#??????????????? | | ????????# R ""##??????????????? | | ???????# @## """#???????????????? | | ????? ####### #??????????????? | | ????? #?????# #??????????????? | | ?????? ????# # ?????????????? | | ??????# ??? ???????????? | | ??????### ?? ??????????? | | ????????# ######## ? ??????????? | | ???????# ???????# # ?????????? | | ???????? ???????? ##### ? #?????????? | | ???????? ##???????? #????# #????????????? | | ????????? ?????????? #????? #????????????? | | ?????????????????????? ????? ??????????????? | | ?????????????????????? ?????????????????????? | | ??????????????????????? ??????????????????????? | | ??????????????????????? ???????????????????????? | | ?????????????????????????????????????????????????? | | ?????????????????????????????????????????????????? | | ?????????????????????????????????????????????????? | | ?????????????????????????????????????????????????? | | ?????????????????????????????????????????????????? | | ?????????????????????????????????????????????????? | | ?????????????????????????????????????????????????? | | ?????????????????????????????????????????????????? | | ?????????????????????????????????????????????????? | | ?????????????????????????????????????????????????? | +----------------------------------------------------+ Best States ------------- Heat Dissipation 25 Energy Generation 15 Energy Capacity 250 Matter Stores 450 Matter Capacity 450 Sight Range 16 Terrain Scan Density 10 Evasion (%) 55 Recoil Reduction 1 Item Schematics ----------------- None Robot Schematics ------------------ None Fabricated ------------ Nothing Repaired ---------- Nothing Studied --------- None Alien Tech Used ----------------- None Achievements -------------- None Challenges ------------ None Game ------ Seed 4llc0gn0mind Manual? 1 Play Time 00:14:18 Cumulative 31.5 hours Start 2025.12.04 @ 11:12:47 End 2025.12.04 @ 11:26:49 Sessions 1 Manual Loads 0 Difficulty Rogue Special Mode None Game No. 38 Rogue 38 Adventurer 0 Explorer 0 Win Type - Total 0 Types 0/0/0/0/0/0/0/0/0/0 Lore% 11 Gallery% 23 Achievement% 18 Wizard Run 0 Options --------- Layout 0 ASCII 0 Keyboard 0 Movement Mouse Keybinds 0 Fullscreen 0 Font 24/Smallcaps Map View 74x54 Zoom Use 0% Tactical HUD 1 Map Filters NONE Filters NONE Steam 1 RUN: 11b60610-e051-4971-85ca-86626fddab05